fUST/lending_fUST_20251219
["ID","MTS","AMOUNT","RATE_DAILY","PERIOD"]
[399159503,1766129503091,210.164,0.00047,79]
[399159505,1766129503134,225.09233531,0.00049999,120]
[399159507,1766129503270,250.0,0.00054795,20]
[399159510,1766129503897,250.0,0.00054795,20]
[399159514,1766129504535,241.65867996,0.00049999,120]
[399159515,1766129504582,250.0,0.00054795,20]
[399159516,1766129504629,411.20252469,0.00049999,120]
[399159519,1766129505169,250.0,0.00054795,20]
[399159520,1766129505376,500.0,0.00054794,120]
[399159524,1766129507063,1112.0,0.00054795,20]
[399159525,1766129507312,516.01116484,0.0005479,120]
[399159528,1766129507699,1112.0,0.00054795,20]
[399159530,1766129508339,1112.0,0.00054795,20]
[399159532,1766129509084,1112.0,0.00054795,20]
[399159533,1766129509342,500.0,0.00054794,120]
[399159535,1766129509683,1112.0,0.00054795,20]
[399159536,1766129510228,1112.0,0.00054795,20]
[399159538,1766129510341,500.0,0.00054794,120]
[399159542,1766129511350,1112.0,0.00054795,20]
[399159545,1766129511969,165.64,0.000343,30]
[399159546,1766129512013,1112.0,0.00054795,20]
[399159548,1766129512262,165.64,0.000451,30]
[399159550,1766129512613,1112.0,0.00054795,20]
[399159553,1766129513250,1112.0,0.00054795,20]
[399159556,1766129513880,1112.0,0.00054795,20]
[399159558,1766129513992,500.0,0.0005479,120]
[399159561,1766129514592,150.0,0.00014635,2]
[399159569,1766129518508,500.0,0.00054794,120]
[399159573,1766129520401,1643.74,0.00054794,120]
[399159579,1766129522768,500.0,0.0005479,120]
[399159580,1766129524868,500.0,0.00054794,120]
[399159581,1766129525912,500.0,0.00054794,120]
[399159582,1766129527677,1167.76,0.00054794,120]
[399159583,1766129527821,763.7,0.00054794,120]
[399159584,1766129529629,500.0,0.00013273,2]
[399159585,1766129532180,2307.2479755,0.00054663,120]
[399159586,1766129532483,250.0,0.00054795,20]
[399159587,1766129532965,830.46664735,0.00054795,20]
[399159588,1766129533104,250.0,0.00054795,20]
[399159589,1766129533643,500.0,0.0005479,120]
[399159590,1766129533746,250.0,0.00054795,20]
[399159591,1766129534356,250.0,0.00054795,20]
[399159592,1766129534978,250.0,0.00054795,20]
[399159593,1766129535587,250.0,0.00054795,20]
[399159594,1766129535639,615.35,0.00054794,120]
[399159595,1766129536203,250.0,0.00054795,20]
[399159596,1766129536831,250.0,0.00054795,20]
[399159597,1766129537191,192.7418927,0.00054247,30]
[399159598,1766129537487,250.0,0.00054795,20]
[399159599,1766129538135,250.0,0.00054795,20]
[399159600,1766129538757,250.0,0.00054795,20]
[399159604,1766129583845,504.04940841,0.00013273,2]
[399159605,1766129583932,486.60067522,0.00013273,2]
[399159900,1766129642423,150.0,0.00010431,2]
[399159901,1766129642863,150.0,0.00010928,2]
[399159902,1766129643279,150.0,0.00011425,2]
[399160151,1766129771275,150.0,0.0001127,2]
[399160200,1766129835278,150.0,0.00010659,2]
[399160204,1766129835672,150.0,0.00011167,2]
[399160211,1766129837495,26057.14,0.00016,120]
[399160310,1766129882746,222.11697863,0.000169,2]
[399160311,1766129884566,1000.0,0.000169,2]
[399160420,1766129930590,563.86669204,0.000169,2]
[399160421,1766129931014,563.86669204,0.000169,2]
[399160422,1766129931413,563.86669204,0.000169,2]
[399160423,1766129931856,563.86669204,0.000169,2]
[399160424,1766129932395,563.86669204,0.000169,2]
[399160425,1766129932751,563.86669204,0.000169,2]
[399160426,1766129933128,563.86669204,0.000169,2]
[399160427,1766129933581,563.86669204,0.000169,2]
[399160428,1766129934018,563.86669204,0.000169,2]
[399160429,1766129934486,563.86669204,0.000169,2]
[399160430,1766129934881,563.86669204,0.000169,2]
[399160431,1766129935336,563.86669204,0.000169,2]
[399160432,1766129935706,563.86669204,0.000169,2]
[399160433,1766129936073,563.86669204,0.000169,2]
[399160434,1766129936523,563.86669204,0.000169,2]
[399160435,1766129936892,563.86669204,0.000169,2]
[399160436,1766129937456,563.86669204,0.000169,2]
[399160438,1766129938151,563.86669204,0.000169,2]
[399160439,1766129938373,563.86669204,0.000169,2]
[399160440,1766129938794,563.86669204,0.000169,2]
[399160441,1766129939196,563.86669204,0.000169,2]
[399160442,1766129939569,563.86669204,0.000169,2]
[399160443,1766129939939,563.86669204,0.000169,2]
[399160444,1766129940356,563.86669204,0.000169,2]
[399160445,1766129940875,563.86669204,0.000169,2]
[399160446,1766129941360,563.86669204,0.000169,2]
[399160447,1766129941734,563.86669204,0.000169,2]
[399160448,1766129942096,563.86669204,0.000169,2]
[399160449,1766129942493,563.86669204,0.000169,2]
[399160450,1766129942890,563.86669204,0.000169,2]
[399160505,1766130005923,346.86543,0.00013699,2]
[399160648,1766130124769,185.0,0.000169,2]
[399160657,1766130192025,14000.0,0.000152,120]
[399160659,1766130236858,14591.0,0.000169,2]
[399160660,1766130283811,150.0,9.93e-05,2]
[399160661,1766130284247,150.0,0.00010403,2]
[399160680,1766130349129,150.0,9.866e-05,2]
[399160681,1766130349547,150.0,0.00010336,2]
[399160710,1766130373397,1000.0,0.000169,2]
[399160713,1766130415034,150.0,9.916e-05,2]
[399160714,1766130415456,150.0,0.00010388,2]
[399160716,1766130479461,150.0,9.893e-05,2]
[399160717,1766130479757,150.0,0.00010364,2]
[399160720,1766130530928,10000.0,0.000169,2]
[399160721,1766130538692,10000.0,0.000169,2]
[399160723,1766130607126,150.0,9.98e-05,2]
[399160745,1766130631953,-374.82685189,0.00017289,2]
[399160747,1766130631964,-118.48365061,0.00017289,2]
[399160749,1766130631974,-222.11697863,0.00017866,4]
[399160751,1766130631983,-500.0,0.00017999,2]
[399160753,1766130631992,-500.0,0.00017999,2]
[399160755,1766130632002,-194.15142595,0.00018,2]
[399160756,1766130632011,-222.11697863,0.00018831,6]
[399160758,1766130632021,-1000.0,0.00019566,2]
[399160760,1766130632030,-222.11697863,0.00019797,8]
[399160762,1766130632040,-2500.0,0.0002,2]
[399160763,1766130632049,-375.0,0.00020004,2]
[399160765,1766130632058,-194.15142594,0.00020005,2]
[399160767,1766130632068,-489.3944289,0.00020106,2]
[399160768,1766130632077,-346.86543,0.00020187,2]
[399160770,1766130632087,-300.0,0.00020499,2]
[399160772,1766130632096,-5000.0,0.000205,2]
[399160774,1766130632106,-251.66093724,0.00020545,2]
[399160776,1766130632115,-222.11697863,0.00020762,10]
[399160778,1766130632124,-500.0,0.00020999,2]
[399160780,1766130632133,-500.0,0.00020999,2]
[399160782,1766130632143,-500.0,0.00021295,2]
[399160783,1766130632151,-500.0,0.00021295,2]
[399160785,1766130632161,-500.0,0.00021295,2]
[399160787,1766130632170,-500.0,0.00021295,2]
[399160789,1766130632180,-500.0,0.00021295,2]
[399160791,1766130632189,-526.62590553,0.00021295,2]
[399160793,1766130632198,-500.0,0.00021295,2]
[399160795,1766130632208,-500.0,0.00021295,2]
[399160796,1766130632217,-500.0,0.00021295,2]
[399160798,1766130632226,-402.96010366,0.00021295,2]
[399160800,1766130632236,-500.0,0.00021295,2]
[399160802,1766130632245,-500.0,0.00021295,2]
[399160804,1766130632254,-500.0,0.00021295,2]
[399160806,1766130632263,-500.0,0.00021295,2]
[399160808,1766130632272,-500.0,0.00021295,2]
[399160809,1766130632282,-500.0,0.00021295,2]
[399160811,1766130632291,-500.0,0.00021295,2]
[399160813,1766130632300,-500.0,0.00021295,2]
[399160815,1766130632309,-500.0,0.00021295,2]
[399160817,1766130632318,-5000.0,0.000213,2]
[399160819,1766130632327,-4058.68092291,0.00021399,2]
[399160821,1766130632337,-243.42899756,0.000214,2]
[399160823,1766130632346,-160.0,0.00021432,2]
[399160824,1766130632355,-500.0,0.00021486,2]
[399160826,1766130632364,-500.0,0.00021488,2]
[399160828,1766130632373,-500.0,0.00021488,2]
[399160830,1766130632382,-1529.25,0.0002149,3]
[399160832,1766130632391,-764.62,0.0002149,3]
[399160834,1766130632400,-382.31,0.0002149,3]
[399160836,1766130632409,-191.16,0.0002149,3]
[399160838,1766130632418,-573.49,0.0002149,3]
[399160840,1766130632427,-746.98,0.0002149,10]
[399160841,1766130632436,-500.0,0.00021498,2]
[399160843,1766130632445,-484.06337747,0.00021499,2]
[399160845,1766130632454,-500.0,0.00021499,2]
[399160847,1766130632464,-169.16107597,0.00021499,2]
[399160849,1766130632473,-500.0,0.00021499,2]
[399160851,1766130632482,-197.43621951,0.00021499,2]
[399160852,1766130632491,-273.73302759,0.00021499,2]
[399160855,1766130632510,-500.0,0.00021499,2]
[399160857,1766130632519,-500.0,0.00021499,2]
[399160859,1766130632528,-500.0,0.00021499,2]
[399160860,1766130632537,-500.0,0.00021499,2]
[399160862,1766130632546,-362.84,0.00021499,2]
[399160864,1766130632555,-500.0,0.00021499,2]
[399160866,1766130632564,-500.0,0.00021499,2]
[399160868,1766130632573,-478.11818114,0.00021499,2]
[399160869,1766130632582,-500.0,0.00021499,2]
[399160871,1766130632591,-500.0,0.00021499,2]
[399160873,1766130632600,-500.0,0.00021499,2]
[399160875,1766130632609,-500.0,0.00021499,2]
[399160882,1766130632683,-459.32,0.00021499,2]
[399160884,1766130632693,-500.0,0.00021499,2]
[399160886,1766130632702,-500.0,0.00021499,2]
[399160888,1766130632711,-500.0,0.00021499,2]
[399160890,1766130632721,-500.0,0.00021499,2]
[399160892,1766130632729,-500.0,0.00021499,2]
[399160893,1766130632739,-500.0,0.00021499,2]
[399160895,1766130632748,-500.0,0.00021499,2]
[399160897,1766130632757,-500.0,0.00021499,2]
[399160899,1766130632766,-500.0,0.00021499,2]
[399160901,1766130632776,-419.01,0.00021499,2]
[399160903,1766130632785,-185442.68875902,0.000215,7]
[399160905,1766130632798,-1786.41700567,0.000215,7]
[399160907,1766130632807,-474.79,0.000215,2]
[399160909,1766130632816,-151.0,0.000215,4]
[399160910,1766130632826,-251.66093724,0.00021587,2]
[399160912,1766130632835,-222.11697863,0.00021728,12]
[399160914,1766130632845,-600.0,0.00021929,10]
[399160916,1766130632853,-260.0,0.0002198,2]
[399160918,1766130632863,-242.53,0.00022,7]
[399160920,1766130632874,-2939.389,0.0002212,2]
[399160922,1766130632883,-151.0,0.000223,9]
[399160924,1766130632891,-309.0,0.0002231,2]
[399160926,1766130632900,-360.0,0.00022528,2]
[399160927,1766130632909,-251.66093724,0.00022629,2]
[399160929,1766130632918,-222.11697863,0.00022693,14]
[399160930,1766130632927,-528.24,0.00022859,2]
[399160932,1766130632936,-3058.5,0.0002286,3]
[399160934,1766130632944,-1529.24,0.0002286,3]
[399160936,1766130632954,-764.62,0.0002286,3]
[399160938,1766130632963,-382.32,0.0002286,3]
[399160939,1766130632973,-159.72,0.00022982,2]
[399160941,1766130632982,-8586.94,0.00023,2]
[399160943,1766130632991,-460.0,0.00023076,2]
[399160945,1766130633000,-243.42899754,0.00023147,2]
[399160947,1766130633010,-151.0,0.000232,5]
[399160948,1766130633020,-353.26884761,0.00023326,5]
[399160950,1766130633030,-160.0,0.000234,5]
[399160952,1766130633040,-560.0,0.00023624,2]
[399160954,1766130633050,-222.11697863,0.00023659,16]
[399160955,1766130633059,-251.66093724,0.00023671,2]
[399160956,1766130633069,-151.0,0.00024,10]
[399160957,1766130633080,-604.0,0.00024,4]
[399160958,1766130633090,-216.6796361,0.00024071,2]
[399160959,1766130633100,-720.0,0.00024122,10]
[399160960,1766130633110,-22918.49911964,0.00024142,2]
[399160961,1766130633120,-660.0,0.00024172,2]
[399160962,1766130633130,-303.91888355,0.000245,2]
[399160963,1766130633140,-222.11697863,0.00024624,18]
[399160964,1766130633150,-268.10582185,0.0002465,2]
[399160965,1766130633160,-482.10788885,0.0002465,2]
[399160966,1766130633169,-162.85552375,0.0002465,2]
[399160967,1766130633179,-284.16185504,0.0002465,2]
[399160968,1766130633188,-150.0,0.00024658,2]
[399160969,1766130633198,-251.91259818,0.00024713,2]
[399160970,1766130633207,-760.0,0.0002472,2]
[399160971,1766130633216,-168.0,0.00024783,2]
[399160972,1766130633226,-18223.0270086,0.000248,2]
[399160973,1766130633235,-168.0,0.00024885,2]
[399160974,1766130633247,-243.42899754,0.00024893,2]
[399160975,1766130633257,-151.0,0.000249,6]
[399160976,1766130633266,-19480.95289671,0.000249,2]
[399160977,1766130633278,-334.45923056,0.000249,2]
[399160978,1766130633300,-500.0,0.00021295,2]
[399160979,1766130633309,-183.9188787,0.00021295,2]
[399160980,1766130633319,-318.52942084,0.000249,2]
[399161002,1766130638060,-500.0,0.00021295,2]
[399161003,1766130638070,-500.0,0.00021295,2]
[399161005,1766130638080,-639.84848154,0.00021295,2]
[399161007,1766130638089,-500.0,0.00021295,2]
[399161009,1766130638099,-500.0,0.00021295,2]
[399161011,1766130638108,-500.0,0.00021295,2]
[399161013,1766130638118,-500.0,0.00021295,2]
[399161015,1766130638127,-500.0,0.00021295,2]
[399161017,1766130638136,-3952.81364089,0.000249,2]
[399161018,1766130638145,-250.0,0.00025205,2]
[399161020,1766130638155,-860.0,0.00025268,2]
[399161022,1766130638164,-242.53,0.000253,7]
[399161024,1766130638174,-293.13994274,0.00025365,2]
[399161026,1766130638183,-222.11697863,0.0002559,20]
[399161028,1766130638192,-151.0,0.000257,13]
[399161030,1766130638202,-350.0,0.00025753,2]
[399161032,1766130638211,-960.0,0.00025816,2]
[399161041,1766130638300,-214.37151578,0.00025977,5]
[399161043,1766130638311,-511.49133907,0.00026175,2]
[399161045,1766130638321,-336.44012871,0.00026301,2]
[399161047,1766130638332,-40.87460355,0.00026301,2]
[399161049,1766130638342,-1060.0,0.00026364,2]
[399161051,1766130638351,-222.11697863,0.00026555,22]
[399161053,1766130638360,-151.0,0.000266,17]
[399161054,1766130638369,-243.42899754,0.0002664,2]
[399161056,1766130638379,-346.86543,0.00026676,2]
[399161058,1766130638388,-1160.0,0.00026912,2]
[399161060,1766130638398,-4817.35103779,0.0002698,2]
[399161062,1766130638409,-3644.60540173,0.0002698,2]
[399161064,1766130638419,-12825.05539515,0.0002699,2]
[399161068,1766130638446,-2529.46607915,0.0002699,2]
[399161070,1766130638457,-3665.11543935,0.0002699,2]
[399161072,1766130638467,-1024.6242914,0.0002699,2]
[399161074,1766130638478,-4295.00459402,0.0002699,2]
[399161077,1766130638493,-1900.13446402,0.0002699,2]
[399161079,1766130638504,-968.75395028,0.0002699,2]
[399161235,1766130640254,-4606.55837794,0.0002699,2]
[399161236,1766130640265,-454.58,0.0002699,2]
[399161237,1766130640303,-2626.04038728,0.0002699,2]
[399161238,1766130640314,-2502.35060588,0.0002699,2]
[399161520,1766130643188,-300.0,0.0002172,10]
[399161522,1766130643198,-300.0,0.0002172,10]
[399161524,1766130643208,-300.0,0.0002172,10]
[399161526,1766130643217,-300.0,0.0002172,10]
[399161528,1766130643226,-250.0,0.00024205,2]
[399161530,1766130643235,-7556.42577352,0.0002699,2]
[399161532,1766130643245,-500.0,0.00027,2]
[399161534,1766130643254,-668.1490741,0.0002716,2]
[399161536,1766130643264,-154.21873374,0.000272,7]
[399161538,1766130643273,-500.0,0.00027397,120]
[399161540,1766130643281,-1260.0,0.0002746,2]
[399161542,1766130643290,-151.0,0.000275,14]
[399161544,1766130643299,-222.11697863,0.00027521,24]
[399161546,1766130643307,-151.0,0.000276,10]
[399161547,1766130643316,-8586.94,0.000278,2]
[399161550,1766130643329,-4058.68092291,0.00027899,2]
[399161552,1766130643338,-160.0,0.000279,10]
[399161554,1766130643347,-622.48,0.0002798,10]
[399161555,1766130643356,-9634.70207558,0.0002799,2]
[399161557,1766130643366,-7289.21080346,0.0002799,2]
[399161560,1766130643375,-75966.87946749,0.00028,2]
[399161561,1766130643386,-151.0,0.00028,13]
[399161563,1766130643396,-542.94608861,0.00028008,2]
[399161566,1766130643405,-242.53,0.000283,7]
[399161567,1766130643415,-151.0,0.000283,11]
[399161570,1766130643425,-243.42899754,0.00028386,2]
[399161572,1766130643434,-222.11697863,0.00028486,26]
[399161580,1766130643505,-28904.1062267,0.0002849,2]
[399161583,1766130643515,-21867.6324104,0.0002849,2]
[399161584,1766130643524,-200.0,0.00028499,10]
[399161587,1766130643533,-200.0,0.00028499,10]
[399161589,1766130643542,-200.0,0.00028499,10]
[399161591,1766130643551,-216228.63796677,0.000285,7]
[399161593,1766130643562,-502.00381482,0.000285,7]
[399161650,1766130644085,-80593.25436259,0.000285,7]
[399161652,1766130644094,-9951.71,0.000285,2]
[399161654,1766130644103,-151.0,0.000285,7]
[399161656,1766130644112,-151.0,0.000285,7]
[399161658,1766130644121,-151.0,0.000285,7]
[399161660,1766130644131,-151.0,0.000285,7]
[399161662,1766130644140,-151.620531,0.000285,7]
[399161664,1766130644149,-153.121332,0.000285,7]
[399161666,1766130644158,-322.972383,0.000285,7]
[399161668,1766130644168,-322.972383,0.000285,7]
[399161670,1766130644178,-322.972383,0.000285,7]
[399161672,1766130644188,-322.972383,0.000285,7]
[399161674,1766130644197,-429.188524,0.000285,7]
[399161676,1766130644207,-429.188524,0.000285,7]
[399161679,1766130644216,-429.188524,0.000285,7]
[399161681,1766130644226,-429.188524,0.000285,7]
[399161682,1766130644235,-151.0,0.000285,7]
[399161684,1766130644245,-187.410336,0.000285,7]
[399161686,1766130644255,-187.410336,0.000285,7]
[399161688,1766130644265,-187.410336,0.000285,7]
[399161690,1766130644276,-187.410336,0.000285,7]
[399161692,1766130644286,-151.0,0.000285,7]
[399161694,1766130644295,-151.0,0.000285,7]
[399161697,1766130644308,-151.0,0.000285,7]
[399161699,1766130644317,-151.0,0.000285,7]
[399161701,1766130644326,-151.0,0.000285,7]
[399161703,1766130644335,-151.0,0.000285,7]
[399161705,1766130644345,-500.0,0.000287,2]
[399161707,1766130644354,-151.0,0.000291,14]
[399161709,1766130644364,-413.535,0.00029112,21]
[399161711,1766130644373,-184.36495993,0.00029112,21]
[399161713,1766130644382,-222.11697863,0.00029452,28]
[399161715,1766130644391,-183.99653214,0.00029532,30]
[399161717,1766130644401,-333.3914897,0.00029661,2]
[399161719,1766130644410,-155.306387,0.00029661,2]
[399161721,1766130644420,-2422.540942,0.00029661,2]
[399161723,1766130644429,-2000.0,0.0002988,7]
[399161725,1766130644439,-170.02900496,0.0002989,2]
[399161727,1766130644448,-374.05060749,0.00029979,5]
[399161729,1766130644457,-28904.1062267,0.0002999,2]
[399161731,1766130644467,-21867.6324104,0.0002999,2]
[399161733,1766130644476,-200.65670343,0.00029999,10]
[399161735,1766130644486,-316485.06752646,0.0003,2]
[399161737,1766130644495,-3754.0,0.0003,2]
[399161739,1766130644505,-57534.62206355,0.0003,2]
[399161748,1766130644576,-20000.0,0.0003,3]
[399161750,1766130644585,-151.0,0.0003,7]
[399161752,1766130644594,-151.0,0.0003,7]
[399161754,1766130644603,-151.0,0.0003,7]
[399161756,1766130644612,-151.0,0.0003,7]
[399161758,1766130644621,-322.972383,0.0003,7]
[399161760,1766130644630,-322.972383,0.0003,7]
[399161763,1766130644643,-322.972383,0.0003,7]
[399161765,1766130644652,-322.972383,0.0003,7]
[399161767,1766130644662,-429.188524,0.0003,7]
[399161769,1766130644672,-429.188524,0.0003,7]
[399161771,1766130644682,-429.188524,0.0003,7]
[399161773,1766130644691,-429.188524,0.0003,7]
[399161775,1766130644700,-151.0,0.0003,7]
[399161777,1766130644710,-187.410336,0.0003,7]
[399161779,1766130644720,-187.410336,0.0003,7]
[399161781,1766130644729,-187.410336,0.0003,7]
[399161783,1766130644737,-187.410336,0.0003,7]
[399161785,1766130644747,-151.0,0.0003,7]
[399161787,1766130644756,-151.0,0.0003,7]
[399161789,1766130644765,-151.0,0.0003,7]
[399161791,1766130644775,-151.0,0.0003,7]
[399161793,1766130644784,-151.0,0.0003,7]
[399161795,1766130644793,-151.0,0.0003,7]
[399161797,1766130644802,-500.0,0.00030137,120]
[399161799,1766130644811,-222.11697863,0.00030417,30]
[399161801,1766130644820,-474.6588357,0.0003112,2]
[399161803,1766130644829,-1313.02244535,0.000319,2]
[399161805,1766130644838,-8586.94,0.00032,2]
[399161807,1766130644846,-2000.0,0.0003239,7]
[399161809,1766130644855,-325.76007884,0.00032876,120]
[399161811,1766130644864,-500.0,0.00032876,2]
[399161813,1766130644873,-500.0,0.00032876,2]
[399161815,1766130644882,-500.0,0.00032876,2]
[399161817,1766130644892,-500.0,0.00032876,2]
[399161819,1766130644902,-500.0,0.00032876,2]
[399161821,1766130644912,-500.0,0.00032876,2]
[399161823,1766130644921,-500.0,0.00032876,2]
[399161825,1766130644930,-500.0,0.00032876,2]
[399161827,1766130644939,-500.0,0.00032876,2]
[399161829,1766130644948,-500.0,0.00032876,2]
[399161831,1766130644958,-500.0,0.00032876,2]
[399161833,1766130644967,-500.0,0.00032876,2]
[399161835,1766130644976,-500.0,0.00032876,2]
[399161839,1766130644999,-500.0,0.00032876,2]
[399161842,1766130645015,-484.33043682,0.00032876,2]
[399161845,1766130645033,-500.0,0.00032877,120]
[399161848,1766130645051,-212.235513,0.00032877,31]
[399161851,1766130645071,-151.0,0.00032877,31]
[399161854,1766130645088,-151.0,0.00032877,31]
[399161857,1766130645106,-151.0,0.00032877,31]
[399161859,1766130645120,-151.0,0.00032877,31]
[399161862,1766130645136,-151.0,0.00032877,31]
[399161865,1766130645153,-151.0,0.00032877,31]
[399161868,1766130645172,-151.0,0.00032877,31]
[399161871,1766130645187,-151.0,0.00032877,31]
[399161873,1766130645201,-151.0,0.00032877,31]
[399161876,1766130645219,-151.0,0.00032877,31]
[399161879,1766130645233,-151.184483,0.00032877,31]
[399161882,1766130645248,-151.0,0.00032877,31]
[399161884,1766130645261,-156.473576,0.00032877,31]
[399161887,1766130645275,-151.0,0.00032877,31]
[399161889,1766130645289,-151.0,0.00032877,31]
[399161892,1766130645303,-151.0,0.00032877,31]
[399161894,1766130645317,-151.0,0.00032877,31]
[399161897,1766130645331,-151.0,0.00032877,31]
[399161899,1766130645345,-151.0,0.00032877,31]
[399161902,1766130645359,-151.0,0.00032877,31]
[399161905,1766130645373,-151.0,0.00032877,31]
[399161907,1766130645386,-151.0,0.00032877,31]
[399161910,1766130645399,-167.804504,0.00032877,31]
[399161912,1766130645413,-151.0,0.00032877,31]
[399161915,1766130645426,-167.804504,0.00032877,31]
[399161917,1766130645440,-151.0,0.00032877,31]
[399161920,1766130645453,-167.804504,0.00032877,31]
[399161922,1766130645466,-151.0,0.00032877,31]
[399161925,1766130645479,-167.804504,0.00032877,31]
[399161927,1766130645493,-151.0,0.00032877,31]
[399161930,1766130645507,-151.0,0.00032877,31]
[399161932,1766130645520,-167.804504,0.00032877,31]
[399161935,1766130645534,-167.804504,0.00032877,31]
[399161937,1766130645547,-167.804504,0.00032877,31]
[399161940,1766130645560,-167.804504,0.00032877,31]
[399161942,1766130645573,-154.306891,0.00032877,31]
[399161945,1766130645587,-151.0,0.00032877,31]
[399161947,1766130645601,-151.0,0.00032877,31]
[399161950,1766130645615,-151.0,0.00032877,31]
[399161961,1766130645628,-155.071805,0.00032877,31]
[399161965,1766130645721,-151.0,0.00032877,31]
[399161967,1766130645729,-159.037632,0.00032877,31]
[399161969,1766130645738,-151.0,0.00032877,31]
[399161971,1766130645748,-151.0,0.00032877,31]
[399161973,1766130645759,-151.0,0.00032877,31]
[399161975,1766130645768,-300.7659,0.00032877,31]
[399161977,1766130645777,-151.0,0.00032877,31]
[399161979,1766130645786,-153.970146,0.00032877,31]
[399161981,1766130645795,-156.604973,0.00032877,31]
[399161983,1766130645804,-738.584773,0.00032877,31]
[399161985,1766130645813,-156.604973,0.00032877,31]
[399161987,1766130645822,-738.584773,0.00032877,31]
[399161989,1766130645831,-156.604973,0.00032877,31]
[399161991,1766130645840,-156.604973,0.00032877,31]
[399161993,1766130645849,-738.584773,0.00032877,31]
[399161995,1766130645859,-738.584773,0.00032877,31]
[399161997,1766130645867,-156.604973,0.00032877,31]
[399161999,1766130645876,-156.604973,0.00032877,31]
[399162001,1766130645884,-738.584773,0.00032877,31]
[399162003,1766130645893,-738.584773,0.00032877,31]
[399162005,1766130645903,-156.604973,0.00032877,31]
[399162007,1766130645912,-156.604973,0.00032877,31]
[399162009,1766130645923,-151.0,0.00032877,31]
[399162010,1766130645933,-738.584773,0.00032877,31]
[399162013,1766130645942,-738.584773,0.00032877,31]
[399162014,1766130645951,-374.203898,0.00032877,31]
[399162016,1766130645960,-374.203898,0.00032877,31]
[399162018,1766130645969,-374.203898,0.00032877,31]
[399162021,1766130645979,-374.203898,0.00032877,31]
[399162022,1766130645990,-151.0,0.00032877,31]
[399162024,1766130646001,-374.203898,0.00032877,31]
[399162027,1766130646011,-151.0,0.00032877,31]
[399162028,1766130646021,-374.203898,0.00032877,31]
[399162030,1766130646030,-151.0,0.00032877,31]
[399162032,1766130646039,-374.203898,0.00032877,31]
[399162035,1766130646049,-151.0,0.00032877,31]
[399162037,1766130646058,-374.203898,0.00032877,31]
[399162038,1766130646067,-282.132847,0.00032877,31]
[399162040,1766130646076,-195.765928,0.00032877,31]
[399162042,1766130646085,-155.174283,0.00032877,31]
[399162045,1766130646095,-155.546219,0.00032877,31]
[399162047,1766130646104,-151.0,0.00032877,31]
[399162049,1766130646113,-151.0,0.00032877,31]
[399162051,1766130646122,-259.446183,0.00032877,31]
[399162053,1766130646131,-259.446183,0.00032877,31]
[399162055,1766130646139,-259.446183,0.00032877,31]
[399162057,1766130646148,-259.446183,0.00032877,31]
[399162059,1766130646157,-259.446183,0.00032877,31]